fUSD/lending_fUSD_20250426
["ID","MTS","AMOUNT","RATE_DAILY","PERIOD"]
[359024669,1745658638997,-500.0,0.00019799,2]
[359024671,1745658639010,-500.0,0.00019799,2]
[359024673,1745658639023,-500.0,0.00019799,2]
[359024675,1745658639035,-500.0,0.00019799,2]
[359024678,1745658639047,-500.0,0.00019799,2]
[359024680,1745658639060,-500.0,0.00019799,2]
[359024682,1745658639073,-500.0,0.00019799,2]
[359024684,1745658639085,-150.0,0.00019799,2]
[359024687,1745658639097,-500.0,0.00019799,2]
[359024689,1745658639110,-518.44030118,0.00019799,2]
[359024691,1745658639121,-826.06,0.00019799,2]
[359024693,1745658639134,-500.0,0.00019799,2]
[359024696,1745658639146,-188.26996527,0.00019799,2]
[359024698,1745658639160,-555.40481915,0.00019799,2]
[359024699,1745658639172,-500.0,0.00019799,2]
[359024701,1745658639185,-500.0,0.00019799,2]
[359024703,1745658639196,-500.0,0.00019799,2]
[359024706,1745658639209,-1146.37,0.00019799,2]
[359024708,1745658639222,-638.25,0.00019799,2]
[359024710,1745658639235,-500.0,0.00019799,2]
[359024712,1745658639247,-500.0,0.00019799,2]
[359024714,1745658639260,-500.0,0.00019799,2]
[359024717,1745658639274,-977.29,0.00019799,2]
[359024719,1745658639286,-500.0,0.00019799,2]
[359024721,1745658639300,-500.0,0.00019799,2]
[359024723,1745658639312,-822.99,0.00019799,2]
[359024725,1745658639324,-566.63084856,0.00019799,2]
[359024728,1745658639338,-500.0,0.00019799,2]
[359024730,1745658639351,-500.0,0.00019799,2]
[359024732,1745658639364,-500.0,0.00019799,2]
[359024734,1745658639376,-500.0,0.00019799,2]
[359024737,1745658639389,-500.0,0.00019799,2]
[359024739,1745658639401,-500.0,0.00019799,2]
[359024741,1745658639414,-500.0,0.00019799,2]
[359024743,1745658639426,-406.66803541,0.00019799,2]
[359024745,1745658639439,-519.95197459,0.00019799,2]
[359024748,1745658639452,-500.0,0.00019799,2]
[359024750,1745658639464,-566.68953543,0.00019799,2]
[359024752,1745658639477,-583.62,0.00019799,2]
[359024754,1745658639489,-1193.53,0.00019799,2]
[359024756,1745658639501,-500.0,0.00019799,2]
[359024759,1745658639514,-500.0,0.00019799,2]
[359024761,1745658639527,-500.0,0.00019799,2]
[359024763,1745658639539,-500.0,0.00019799,2]
[359024765,1745658639551,-500.0,0.00019799,2]
[359024767,1745658639564,-637.56,0.00019799,2]
[359024770,1745658639576,-500.0,0.00019799,2]
[359024772,1745658639589,-500.0,0.00019799,2]
[359024774,1745658639603,-500.0,0.00019799,2]
[359024776,1745658639616,-622.51,0.00019799,2]
[359024779,1745658639634,-500.0,0.00019799,2]
[359024782,1745658639651,-500.0,0.00019799,2]
[359024784,1745658639664,-500.0,0.00019799,2]
[359024786,1745658639677,-515.0662409,0.00019799,2]
[359024788,1745658639690,-1335.34,0.00019799,2]
[359024791,1745658639703,-510.91122455,0.00019799,2]
[359024793,1745658639717,-301.43174129,0.00019799,2]
[359024794,1745658639729,-500.0,0.00019799,2]
[359024797,1745658639743,-500.0,0.00019799,2]
[359024799,1745658639757,-582.89226889,0.00019799,2]
[359024802,1745658639772,-500.0,0.00019799,2]
[359024804,1745658639782,-504.70218689,0.00019799,2]
[359024805,1745658639792,-500.0,0.00019799,2]
[359024807,1745658639803,-509.39325458,0.00019799,2]
[359024808,1745658639813,-669.32,0.00019799,2]
[359024809,1745658639823,-552.77,0.00019799,2]
[359024810,1745658639834,-550.57996944,0.00019799,2]
[359024812,1745658639844,-909.65,0.00019799,2]
[359024814,1745658639855,-830.48,0.00019799,2]
[359024816,1745658639865,-767.9,0.00019799,2]
[359024818,1745658639875,-500.0,0.00019799,2]
[359024820,1745658639887,-849.86,0.00019799,2]
[359024822,1745658639898,-500.0,0.00019799,2]
[359024875,1745658639908,-500.0,0.00019799,2]
[359024880,1745658640483,-500.0,0.00019799,2]
[359024883,1745658640505,-500.0,0.00019799,2]
[359024888,1745658640544,-500.0,0.00019799,2]
[359024890,1745658640560,-581.12776466,0.00019799,2]
[359024892,1745658640570,-500.0,0.00019799,2]
[359024895,1745658640585,-500.0,0.00019799,2]
[359024897,1745658640594,-500.0,0.00019799,2]
[359024899,1745658640605,-820.06,0.00019799,2]
[359024901,1745658640615,-742.0,0.00019799,2]
[359024903,1745658640625,-1000.0,0.00019799,2]
[359024905,1745658640635,-500.0,0.00019799,2]
[359024907,1745658640648,-500.0,0.00019799,2]
[359024909,1745658640659,-532.50164479,0.00019799,2]
[359024911,1745658640669,-510.07,0.00019799,2]
[359024913,1745658640679,-500.0,0.00019799,2]
[359024915,1745658640690,-527.5,0.00019799,2]
[359024917,1745658640700,-500.0,0.00019799,2]
[359024919,1745658640710,-1293.11,0.00019799,2]
[359024921,1745658640720,-931.16,0.00019799,2]
[359024923,1745658640730,-1073.83,0.00019799,2]
[359024925,1745658640739,-500.0,0.00019799,2]
[359024927,1745658640749,-664.31,0.00019799,2]
[359024929,1745658640758,-500.0,0.00019799,2]
[359024931,1745658640768,-500.0,0.00019799,2]
[359024933,1745658640778,-507.52583489,0.00019799,2]
[359024935,1745658640787,-580.32340978,0.00019799,2]
[359024937,1745658640797,-500.0,0.00019799,2]
[359024939,1745658640807,-500.0,0.00019799,2]
[359024941,1745658640816,-500.0,0.00019799,2]
[359024943,1745658640826,-972.08,0.00019799,2]
[359024945,1745658640836,-156.95760552,0.00019799,2]
[359024947,1745658640846,-500.0,0.00019799,2]
[359024949,1745658640857,-500.0,0.00019799,2]
[359024951,1745658640867,-694.22,0.00019799,2]
[359024952,1745658640880,-500.0,0.00019799,2]
[359024953,1745658640890,-663.52,0.00019799,2]
[359024954,1745658640900,-500.0,0.00019799,2]
[359024955,1745658640909,-500.0,0.00019799,2]
[359024956,1745658640919,-500.0,0.00019799,2]
[359024957,1745658640929,-747.21,0.00019799,2]
[359024958,1745658640939,-742.84,0.00019799,2]
[359024959,1745658640949,-500.0,0.00019799,2]
[359024960,1745658640959,-500.0,0.00019799,2]
[359024961,1745658640968,-500.0,0.00019799,2]
[359024963,1745658640978,-626.07,0.00019799,2]
[359024965,1745658640988,-500.0,0.00019799,2]
[359024966,1745658640997,-500.0,0.00019799,2]
[359024967,1745658641007,-509.68329933,0.00019799,2]
[359024968,1745658641017,-500.0,0.00019799,2]
[359024969,1745658641031,-414.0860473,0.00019799,2]
[359024970,1745658641041,-201.8511865,0.00019799,2]
[359024971,1745658641052,-500.0,0.00019799,2]
[359024972,1745658641062,-500.0,0.00019799,2]
[359024973,1745658641071,-3369.96,0.00019799,2]
[359024974,1745658641081,-889.05,0.00019799,2]
[359024975,1745658641092,-500.0,0.00019799,2]
[359024976,1745658641102,-1286.26,0.00019799,2]
[359024977,1745658641112,-500.0,0.00019799,2]
[359024978,1745658641122,-500.0,0.00019799,2]
[359024979,1745658641133,-1020.05,0.00019799,2]
[359024981,1745658641143,-500.0,0.00019799,2]
[359024982,1745658641155,-500.0,0.00019799,2]
[359024983,1745658641165,-500.0,0.00019799,2]
[359024984,1745658641177,-500.0,0.00019799,2]
[359024985,1745658641187,-500.0,0.00019799,2]
[359024986,1745658641198,-500.0,0.00019799,2]
[359024987,1745658641208,-625.11,0.00019799,2]
[359024988,1745658641219,-534.0,0.00019799,2]
[359024989,1745658641230,-703.64,0.00019799,2]
[359024990,1745658641242,-500.0,0.00019799,2]
[359024991,1745658641254,-500.0,0.00019799,2]
[359024992,1745658641263,-500.0,0.00019799,2]
[359024993,1745658641273,-488.63984821,0.00019799,2]
[359024994,1745658641282,-500.0,0.00019799,2]
[359024995,1745658641292,-500.0,0.00019799,2]
[359024996,1745658641302,-504.09126627,0.00019799,2]
[359024997,1745658641312,-500.0,0.00019799,2]
[359024998,1745658641322,-631.12927936,0.00019799,2]
[359024999,1745658641332,-500.0,0.00019799,2]
[359025000,1745658641341,-500.0,0.00019799,2]
[359025001,1745658641352,-544.48,0.00019799,2]
[359025002,1745658641362,-512.53306007,0.00019799,2]
[359025003,1745658641371,-500.0,0.00019799,2]
[359025004,1745658641381,-758.42,0.00019799,2]
[359025005,1745658641391,-500.0,0.00019799,2]
[359025006,1745658641401,-795.4,0.00019799,2]
[359025007,1745658641411,-500.0,0.00019799,2]
[359025008,1745658641421,-500.0,0.00019799,2]
[359025009,1745658641431,-500.0,0.00019799,2]
[359025010,1745658641441,-500.0,0.00019799,2]
[359025011,1745658641451,-663.08,0.00019799,2]
[359025012,1745658641460,-756.85,0.00019799,2]
[359025013,1745658641475,-505.91188564,0.00019799,2]
[359025014,1745658641484,-500.0,0.00019799,2]
[359025015,1745658641495,-507.8992,0.00019799,2]
[359025016,1745658641505,-508.88931414,0.00019799,2]
[359025017,1745658641515,-813.59,0.00019799,2]
[359025018,1745658641526,-500.0,0.00019799,2]
[359025019,1745658641536,-500.0,0.00019799,2]
[359025020,1745658641546,-293.62364312,0.00019799,2]
[359025021,1745658641557,-730.81,0.00019799,2]
[359025022,1745658641568,-574.64,0.00019799,2]
[359025023,1745658641578,-940.0,0.00019799,2]
[359025024,1745658641588,-500.0,0.00019799,2]
[359025025,1745658641598,-501.38749911,0.00019799,2]
[359025026,1745658641610,-500.0,0.00019799,2]
[359025027,1745658641620,-500.0,0.00019799,2]
[359025028,1745658641630,-4307.0,0.00019799,2]
[359025029,1745658641645,-719.23,0.00019799,2]
[359025030,1745658641655,-559.23829172,0.00019799,2]
[359025031,1745658641665,-500.0,0.00019799,2]
[359025032,1745658641676,-560.46,0.00019799,2]
[359025033,1745658641687,-647.64,0.00019799,2]
[359025034,1745658641698,-500.0,0.00019799,2]
[359025035,1745658641708,-976.73,0.00019799,2]
[359025036,1745658641722,-1470.99,0.00019799,2]
[359025037,1745658641733,-500.0,0.00019799,2]
[359025038,1745658641743,-500.0,0.00019799,2]
[359025039,1745658641752,-500.0,0.00019799,2]
[359025040,1745658641763,-500.0,0.00019799,2]
[359025041,1745658641775,-500.0,0.00019799,2]
[359025042,1745658641786,-563.3021946,0.00019799,2]
[359025043,1745658641796,-500.0,0.00019799,2]
[359025044,1745658641806,-500.0,0.00019799,2]
[359025045,1745658641817,-500.0,0.00019799,2]
[359025046,1745658641827,-722.64,0.00019799,2]
[359025047,1745658641839,-500.0,0.00019799,2]
[359025048,1745658641850,-500.0,0.00019799,2]
[359025049,1745658641861,-878.34,0.00019799,2]
[359025050,1745658641871,-500.0,0.00019799,2]
[359025051,1745658641880,-500.0,0.00019799,2]
[359025052,1745658641890,-500.0,0.00019799,2]
[359025053,1745658641900,-1011.14,0.00019799,2]
[359025054,1745658641910,-1095.44,0.00019799,2]
[359025055,1745658641933,-500.0,0.00019799,2]
[359025056,1745658641943,-543.08,0.00019799,2]
[359025057,1745658641954,-500.0,0.00019799,2]
[359025058,1745658641964,-500.0,0.00019799,2]
[359025059,1745658641974,-500.0,0.00019799,2]
[359025060,1745658641984,-948.48,0.00019799,2]
[359025061,1745658641994,-626.14,0.00019799,2]
[359025062,1745658642005,-500.0,0.00019799,2]
[359025063,1745658642015,-500.0,0.00019799,2]
[359025064,1745658642026,-582.79,0.00019799,2]
[359025065,1745658642035,-500.0,0.00019799,2]
[359025066,1745658642046,-500.0,0.00019799,2]
[359025067,1745658642056,-615.0,0.00019799,2]
[359025068,1745658642066,-1473.51,0.00019799,2]
[359025069,1745658642078,-500.0,0.00019799,2]
[359025070,1745658642088,-500.0,0.00019799,2]
[359025071,1745658642098,-251.91403498,0.00019799,2]
[359025072,1745658642110,-150.0,0.00019799,2]
[359025073,1745658642120,-636.48,0.00019799,2]
[359025074,1745658642130,-500.0,0.00019799,2]
[359025075,1745658642140,-651.8,0.00019799,2]
[359025076,1745658642150,-982.05,0.00019799,2]
[359025077,1745658642161,-500.0,0.00019799,2]
[359025078,1745658642171,-500.0,0.00019799,2]
[359025079,1745658642182,-601.59,0.00019799,2]
[359025080,1745658642194,-500.0,0.00019799,2]
[359025081,1745658642206,-922.62,0.00019799,2]
[359025082,1745658642216,-623.96,0.00019799,2]
[359025083,1745658642226,-500.0,0.00019799,2]
[359025084,1745658642236,-500.0,0.00019799,2]
[359025085,1745658642246,-500.0,0.00019799,2]
[359025086,1745658642256,-1460.61,0.00019799,2]
[359025087,1745658642266,-500.0,0.00019799,2]
[359025088,1745658642276,-505.69867225,0.00019799,2]
[359025089,1745658642286,-500.0,0.00019799,2]
[359025090,1745658642296,-500.0,0.00019799,2]
[359025091,1745658642306,-507.27,0.00019799,2]
[359025092,1745658642316,-500.0,0.00019799,2]
[359025093,1745658642326,-843.82,0.00019799,2]
[359025094,1745658642336,-500.0,0.00019799,2]
[359025095,1745658642346,-500.0,0.00019799,2]
[359025096,1745658642361,-2279.23,0.00019799,2]
[359025097,1745658642371,-500.0,0.00019799,2]
[359025098,1745658642382,-793.94,0.00019799,2]
[359025099,1745658642392,-500.0,0.00019799,2]
[359025100,1745658642403,-1052.73,0.00019799,2]
[359025101,1745658642413,-500.0,0.00019799,2]
[359025102,1745658642424,-500.0,0.00019799,2]
[359025103,1745658642434,-500.0,0.00019799,2]
[359025104,1745658642444,-500.0,0.00019799,2]
[359025105,1745658642455,-504359.06855933,0.000198,2]
[359025106,1745658642467,-1596.2931492,0.000198,2]
[359025107,1745658642477,-700034.34649796,0.000198,2]
[359025108,1745658642488,-150.0,0.00019804,2]
[359025109,1745658642498,-150.0,0.00019806,2]
[359025110,1745658642509,-150.0,0.00019806,2]
[359025111,1745658642519,-3499.13599807,0.00019813,2]
[359025112,1745658642530,-150.0,0.00019814,2]
[359025113,1745658642541,-150.0,0.00019814,2]
[359025114,1745658642554,-150.0,0.00019815,2]
[359025115,1745658642565,-150.0,0.00019816,2]
[359025116,1745658642576,-150.0,0.00019818,2]
[359025117,1745658642587,-150.0,0.0001982,2]
[359025118,1745658642597,-150.0,0.00019824,2]
[359025119,1745658642611,-1178.0,0.00019835,2]
[359025120,1745658642621,-3499.13599807,0.00019835,2]
[359025121,1745658642632,-10604.44413867,0.00019837,2]
[359025122,1745658642646,-150.0,0.00019839,2]
[359025123,1745658642657,-2000.0,0.0001984,2]
[359025124,1745658642667,-150.0,0.00019847,2]
[359025125,1745658642678,-150.0,0.00019848,2]
[359025126,1745658642690,-150.0,0.00019851,2]
[359025127,1745658642702,-150.0,0.00019851,2]
[359025128,1745658642712,-150.0,0.00019855,2]
[359025129,1745658642724,-3499.13599807,0.00019856,2]
[359025130,1745658642736,-1336.0,0.00019863,2]
[359025131,1745658642746,-796.0,0.00019863,2]
[359025132,1745658642755,-1287.0,0.00019863,2]
[359025133,1745658642765,-2063.0,0.00019863,2]
[359025134,1745658642775,-579.0,0.00019863,2]
[359025135,1745658642785,-911.0,0.00019863,2]
[359025136,1745658642794,-548.0,0.00019863,2]
[359025137,1745658642808,-1446.0,0.00019863,2]
[359025138,1745658642819,-150.0,0.00019865,2]
[359025139,1745658642830,-150.0,0.00019867,2]
[359025140,1745658642840,-150.0,0.00019867,2]
[359025141,1745658642850,-150.0,0.00019874,2]
[359025142,1745658642863,-3499.13599807,0.00019878,2]
[359025143,1745658642873,-150.0,0.00019879,2]
[359025144,1745658642883,-150.0,0.0001988,2]
[359025145,1745658642894,-150.0,0.00019884,2]
[359025146,1745658642904,-150.0,0.00019886,2]
[359025148,1745658642914,-150.0,0.00019887,2]
[359025149,1745658642924,-150.0,0.00019889,2]
[359025150,1745658642933,-150.0,0.00019893,2]
[359025151,1745658642944,-1135.0,0.00019893,2]
[359025152,1745658642954,-201.859,0.00019893,2]
[359025153,1745658642965,-257.141,0.00019893,2]
[359025154,1745658642976,-6193.0,0.00019893,2]
[359025155,1745658642986,-3991.0,0.00019893,2]
[359025156,1745658642998,-872.0,0.00019893,2]
[359025157,1745658643008,-877.0,0.00019893,2]
[359025158,1745658643019,-150.0,0.00019897,2]
[359025159,1745658643031,-150.0,0.00019898,2]
[359025160,1745658643042,-282.06796251,0.00019899,2]
[359025161,1745658643052,-150.0,0.00019899,2]
[359025162,1745658643063,-3499.13599807,0.000199,2]
[359025163,1745658643073,-258.52787675,0.000199,2]
[359025164,1745658643083,-1226.73800681,0.000199,2]
[359025165,1745658643094,-202.83355767,0.000199,2]
[359025166,1745658643104,-4098.97926314,0.000199,2]
[359025167,1745658643116,-150.0,0.00019903,2]
[359025168,1745658643126,-150.0,0.00019904,2]
[359025169,1745658643137,-150.0,0.00019904,2]
[359025170,1745658643147,-150.0,0.00019908,2]
[359025171,1745658643157,-150.0,0.00019914,2]
[359025172,1745658643167,-150.0,0.00019916,2]
[359025173,1745658643177,-150.0,0.00019918,2]
[359025174,1745658643188,-1000.0,0.0001992,2]
[359025175,1745658643198,-1000.0,0.0001992,2]
[359025176,1745658643208,-1000.0,0.0001992,2]
[359025177,1745658643219,-1000.0,0.0001992,2]
[359025178,1745658643229,-1000.0,0.0001992,2]
[359025179,1745658643240,-1000.0,0.0001992,2]
[359025180,1745658643254,-1000.0,0.0001992,2]
[359025181,1745658643264,-150.0,0.00019929,2]
[359025182,1745658643275,-150.0,0.0001993,2]
[359025183,1745658643285,-150.0,0.00019931,2]
[359025185,1745658643295,-150.0,0.00019932,2]
[359025187,1745658643306,-150.0,0.00019933,2]
[359025189,1745658643316,-150.0,0.00019934,2]
[359025191,1745658643326,-150.0,0.00019938,2]
[359025193,1745658643337,-150.0,0.00019943,2]
[359025195,1745658643348,-150.0,0.00019946,2]
[359025198,1745658643360,-150.0,0.00019947,2]
[359025200,1745658643370,-150.0,0.00019947,2]
[359025202,1745658643380,-150.0,0.00019947,2]
[359025204,1745658643391,-150.0,0.00019947,2]
[359025206,1745658643402,-150.0,0.00019951,2]
[359025209,1745658643412,-150.0,0.00019951,2]
[359025211,1745658643423,-150.0,0.00019959,2]
[359025213,1745658643433,-9036.37791177,0.0001996,2]
[359025215,1745658643444,-150.0,0.00019963,2]
[359025217,1745658643454,-150.0,0.00019964,2]
[359025219,1745658643465,-500.0,0.00019964,2]
[359025221,1745658643475,-150.0,0.00019964,2]
[359025223,1745658643485,-500.0,0.00019964,2]
[359025225,1745658643495,-150.0,0.00019964,2]
[359025227,1745658643506,-150.0,0.00019964,2]
[359025229,1745658643517,-500.0,0.00019964,2]
[359025231,1745658643527,-500.0,0.00019964,2]
[359025233,1745658643538,-150.0,0.00019964,2]
[359025235,1745658643548,-150.0,0.00019964,2]
[359025237,1745658643559,-150.0,0.00019964,2]
[359025239,1745658643569,-500.0,0.00019964,2]
[359025241,1745658643579,-500.0,0.00019964,2]
[359025243,1745658643590,-150.0,0.00019964,2]
[359025246,1745658643600,-500.0,0.00019964,2]
[359025248,1745658643613,-1000.0,0.00019964,2]
[359025250,1745658643623,-1000.0,0.00019964,2]
[359025252,1745658643634,-1000.0,0.00019964,2]
[359025254,1745658643644,-1000.0,0.00019964,2]
[359025256,1745658643658,-150.0,0.00019965,2]
[359025258,1745658643678,-150.0,0.00019965,2]
[359025260,1745658643695,-150.0,0.00019967,2]
[359025262,1745658643707,-150.0,0.00019967,2]
[359025264,1745658643718,-150.0,0.00019967,2]
[359025266,1745658643730,-1000.0,0.00019968,2]
[359025269,1745658643743,-1000.0,0.00019968,2]
[359025271,1745658643754,-1000.0,0.00019968,2]
[359025273,1745658643765,-500.0,0.00019968,2]
[359025275,1745658643775,-500.0,0.00019968,2]
[359025277,1745658643785,-500.0,0.00019968,2]
[359025279,1745658643795,-500.0,0.00019968,2]
[359025281,1745658643806,-500.0,0.00019968,2]
[359025283,1745658643816,-500.0,0.00019968,2]
[359025285,1745658643827,-500.0,0.00019968,2]
[359025287,1745658643838,-500.0,0.00019968,2]
[359025289,1745658643848,-1273.38,0.00019968,2]
[359025291,1745658643858,-1544.71,0.00019968,2]
[359025293,1745658643868,-516.19667786,0.00019968,2]
[359025295,1745658643879,-4226.93,0.00019968,2]
[359025297,1745658643888,-500.0,0.00019968,2]
[359025299,1745658643898,-500.0,0.00019968,2]
[359025301,1745658643908,-500.0,0.00019968,2]
[359025303,1745658643919,-4787.84,0.00019968,2]
[359025305,1745658643930,-1506.9,0.00019968,2]
[359025307,1745658643940,-134386.59,0.00019968,2]
[359025309,1745658643950,-569.65,0.00019968,2]
[359025311,1745658643960,-15766.0,0.00019968,2]
[359025313,1745658643970,-707.45,0.00019968,2]
[359025315,1745658643981,-8144.91,0.00019968,2]
[359025317,1745658643991,-1844.25,0.00019968,2]
[359025319,1745658644001,-3120.78,0.00019968,2]
[359025321,1745658644012,-1192.39,0.00019968,2]
[359025323,1745658644023,-741.45,0.00019968,2]
[359025325,1745658644034,-500.0,0.00019968,2]
[359025327,1745658644045,-951.05,0.00019968,2]
[359025330,1745658644056,-787.89,0.00019968,2]
[359025332,1745658644066,-1259.87,0.00019968,2]
[359025334,1745658644076,-717.91,0.00019968,2]
[359025336,1745658644087,-1003.18,0.00019968,2]
[359025364,1745658644363,-500.0,0.00019968,2]
[359025366,1745658644374,-500.0,0.00019968,2]
[359025368,1745658644385,-279.28087059,0.00019968,2]
[359025370,1745658644395,-500.0,0.00019969,2]
[359025372,1745658644406,-500.0,0.00019969,2]
[359025374,1745658644415,-500.0,0.00019969,2]
[359025377,1745658644426,-500.0,0.00019969,2]
[359025378,1745658644435,-376.68023544,0.00019969,2]
[359025380,1745658644445,-500.0,0.00019969,2]
[359025382,1745658644455,-259.7583466,0.00019969,2]
[359025384,1745658644465,-500.0,0.00019969,2]
[359025387,1745658644475,-617.03,0.00019969,2]
[359025389,1745658644485,-500.0,0.00019969,2]
[359025391,1745658644495,-500.0,0.00019969,2]
[359025393,1745658644505,-500.0,0.00019969,2]
[359025395,1745658644516,-500.0,0.00019969,2]
[359025397,1745658644526,-500.0,0.00019969,2]
[359025399,1745658644538,-500.0,0.00019969,2]
[359025401,1745658644549,-508.76219902,0.00019969,2]
[359025403,1745658644559,-500.0,0.00019969,2]
[359025405,1745658644569,-500.0,0.00019969,2]
[359025407,1745658644580,-500.0,0.00019969,2]
[359025409,1745658644590,-500.0,0.00019969,2]
[359025411,1745658644600,-500.0,0.00019969,2]
[359025413,1745658644611,-500.0,0.00019969,2]
[359025415,1745658644621,-558.49,0.00019969,2]
[359025417,1745658644630,-500.0,0.00019969,2]
[359025419,1745658644640,-1008.73,0.00019969,2]
[359025421,1745658644653,-500.0,0.00019969,2]
[359025423,1745658644665,-542.28696134,0.00019969,2]
[359025425,1745658644674,-500.0,0.00019969,2]
[359025427,1745658644684,-500.0,0.00019969,2]
[359025428,1745658644694,-500.0,0.00019969,2]
[359025429,1745658644706,-500.0,0.00019969,2]
[359025430,1745658644718,-500.0,0.00019969,2]
[359025431,1745658644733,-503.54,0.00019969,2]
[359025432,1745658644743,-412.5625911,0.00019969,2]
[359025433,1745658644753,-775.18,0.00019969,2]
[359025434,1745658644762,-500.0,0.00019969,2]
[359025435,1745658644772,-500.0,0.00019969,2]
[359025436,1745658644781,-500.0,0.00019969,2]
[359025437,1745658644791,-500.0,0.00019969,2]
[359025438,1745658644802,-500.0,0.00019969,2]
[359025439,1745658644811,-579.95,0.00019969,2]
[359025440,1745658644821,-500.0,0.00019969,2]
[359025441,1745658644831,-500.0,0.00019969,2]
[359025442,1745658644842,-500.0,0.00019969,2]
[359025444,1745658644852,-852.4,0.00019969,2]
[359025446,1745658644863,-705.33,0.00019969,2]
[359025448,1745658644873,-500.0,0.00019969,2]
[359025450,1745658644882,-500.0,0.00019969,2]
[359025452,1745658644893,-500.0,0.00019969,2]
[359025454,1745658644903,-1118.78,0.00019969,2]
[359025456,1745658644913,-500.0,0.00019969,2]
[359025458,1745658644925,-901.78,0.00019969,2]
[359025460,1745658644935,-1007.89,0.00019969,2]
[359025462,1745658644946,-500.0,0.00019969,2]
[359025464,1745658644956,-500.0,0.00019969,2]
[359025466,1745658644966,-568.68,0.00019969,2]
[359025469,1745658644976,-500.0,0.00019969,2]
[359025470,1745658644986,-500.0,0.00019969,2]
[359025473,1745658644996,-274.90937011,0.00019969,2]
[359025474,1745658645006,-500.0,0.00019969,2]
[359025477,1745658645017,-500.0,0.00019969,2]
[359025479,1745658645027,-500.0,0.00019969,2]
[359025481,1745658645037,-500.0,0.00019969,2]
[359025483,1745658645047,-562.74,0.00019969,2]
[359025484,1745658645057,-500.0,0.00019969,2]
[359025487,1745658645067,-500.0,0.00019969,2]
[359025488,1745658645077,-513.53646551,0.00019969,2]
[359025491,1745658645088,-500.0,0.00019969,2]
[359025493,1745658645098,-581.87,0.00019969,2]
[359025495,1745658645109,-500.0,0.00019969,2]
[359025497,1745658645119,-847.58,0.00019969,2]
[359025499,1745658645129,-500.0,0.00019969,2]
[359025501,1745658645139,-500.0,0.00019969,2]
[359025503,1745658645150,-500.0,0.00019969,2]
[359025505,1745658645160,-553.30116405,0.00019969,2]
[359025507,1745658645170,-596.28,0.00019969,2]
[359025509,1745658645180,-500.0,0.00019969,2]
[359025511,1745658645190,-502.99919919,0.00019969,2]
[359025513,1745658645200,-500.0,0.00019969,2]
[359025515,1745658645210,-500.0,0.00019969,2]
[359025517,1745658645220,-783.11,0.00019969,2]
[359025519,1745658645229,-500.0,0.00019969,2]
[359025521,1745658645240,-500.0,0.00019969,2]
[359025523,1745658645251,-799.78,0.00019969,2]
[359025525,1745658645260,-500.0,0.00019969,2]
[359025527,1745658645270,-500.0,0.00019969,2]
[359025529,1745658645280,-500.0,0.00019969,2]